Workbook

Sheet 附件2--公建民营幼儿园
B1: 附件2
A2: 柳城县公建民营幼儿园统计表
A4: 序号 | B4: 幼儿园名称 | C4: 幼儿园所在地 | D4: 园舍性质 | E4: 校园面积（平方米） | G4: 开园招生时间 | H4: 学校 所数 （所） | I4: 现状在园幼儿数（个） | J4: 规划 班级数 （个） | K4: 规划 学位数 （个） | L4: 回收 时间
E6: 占地面积 | F6: 建筑面积
B7: 小计 | I7: 2861 | J7: 156 | K7: 4680
A8: 1 | B8: 柳城县社冲乡中心幼儿园 | C8: 乡镇 | D8: 国有 | H8: 1 | I8: 68 | J8: 3 | K8: 90 | L8: 2020年
A9: 2 | B9: 柳城县古砦仫佬族乡龙美幼儿园 | C9: 乡镇 | D9: 国有 | H9: 1 | I9: 180 | J9: 8 | K9: 240 | L9: 2020年
A10: 3 | B10: 柳城县大埔镇乐寨幼儿园 | C10: 村屯 | D10: 国有 | H10: 1 | I10: 73 | J10: 3 | K10: 90 | L10: 2021年
A11: 4 | B11: 柳城县东泉镇碑塘小学幼儿园 | C11: 村屯 | D11: 国有 | H11: 1 | I11: 93 | J11: 4 | K11: 120 | L11: 2021年
A12: 5 | B12: 柳城县东泉镇古六幼儿园 | C12: 村屯 | D12: 国有 | H12: 1 | I12: 43 | J12: 3 | K12: 90 | L12: 2021年
A13: 6 | B13: 柳城县东泉镇雷塘小学幼儿园 | C13: 村屯 | D13: 国有 | H13: 1 | I13: 188 | J13: 5 | K13: 150 | L13: 2021年
A14: 7 | B14: 柳城县东泉镇莫道幼儿园 | C14: 村屯 | D14: 国有 | H14: 1 | I14: 69 | J14: 4 | K14: 120 | L14: 2021年
A15: 8 | B15: 柳城县东泉镇西安中段幼儿园 | C15: 村屯 | D15: 国有 | H15: 1 | I15: 56 | J15: 4 | K15: 120 | L15: 2021年
A16: 9 | B16: 柳城县东泉镇西安走马小学幼儿园 | C16: 村屯 | D16: 国有 | H16: 1 | I16: 113 | J16: 4 | K16: 120 | L16: 2021年
A17: 10 | B17: 柳城县古砦仫佬族乡大户小学幼儿园 | C17: 村屯 | D17: 国有 | H17: 1 | I17: 67 | J17: 3 | K17: 90 | L17: 2021年
A18: 11 | B18: 柳城县古砦乡岭头小学幼儿园 | C18: 村屯 | D18: 国有 | H18: 1 | I18: 40 | J18: 2 | K18: 60 | L18: 2021年
A19: 12 | B19: 柳城县古砦乡上富小学幼儿园幼儿园 | C19: 村屯 | D19: 国有 | H19: 1 | I19: 44 | J19: 3 | K19: 90 | L19: 2021年
A20: 13 | B20: 柳城县六塘镇黄冲小学幼儿园 | C20: 村屯 | D20: 国有 | H20: 1 | I20: 19 | J20: 3 | K20: 90 | L20: 2021年
A21: 14 | B21: 柳城县六塘镇肯社小学幼儿园 | C21: 村屯 | D21: 国有 | H21: 1 | I21: 57 | J21: 4 | K21: 120 | L21: 2021年
A22: 15 | B22: 柳城县六塘镇拉燕小学幼儿园 | C22: 村屯 | D22: 国有 | H22: 1 | I22: 43 | J22: 4 | K22: 120 | L22: 2021年
A23: 16 | B23: 柳城县六塘镇三界小学幼儿园 | C23: 村屯 | D23: 国有 | H23: 1 | I23: 63 | J23: 4 | K23: 120 | L23: 2021年
A24: 17 | B24: 柳城县六塘镇油兰小学幼儿园 | C24: 村屯 | D24: 国有 | H24: 1 | I24: 33 | J24: 4 | K24: 120 | L24: 2021年
A25: 18 | B25: 柳城县六塘镇中团小学幼儿园 | C25: 村屯 | D25: 国有 | H25: 1 | I25: 44 | J25: 3 | K25: 90 | L25: 2021年
A26: 19 | B26: 柳城县龙头镇伏虎幼儿园 | C26: 村屯 | D26: 国有 | H26: 1 | I26: 84 | J26: 8 | K26: 240 | L26: 2021年
A27: 20 | B27: 柳城县龙头镇佳用小学幼儿园 | C27: 村屯 | D27: 国有 | H27: 1 | I27: 42 | J27: 3 | K27: 90 | L27: 2021年
A28: 21 | B28: 柳城县龙头镇隆水小学幼儿园 | C28: 村屯 | D28: 国有 | H28: 1 | I28: 44 | J28: 2 | K28: 60 | L28: 2021年
A29: 22 | B29: 柳城县龙头镇旗山幼儿园 | C29: 村屯 | D29: 国有 | H29: 1 | I29: 44 | J29: 3 | K29: 90 | L29: 2021年
A30: 23 | B30: 柳城县龙头镇顺天小学幼儿园 | C30: 村屯 | D30: 国有 | H30: 1 | I30: 55 | J30: 3 | K30: 90 | L30: 2021年
A31: 24 | B31: 柳城县龙头镇瓦窑小学幼儿园 | C31: 村屯 | D31: 国有 | H31: 1 | I31: 57 | J31: 3 | K31: 90 | L31: 2021年
A32: 25 | B32: 柳城县沙埔镇碑田小学幼儿园 | C32: 村屯 | D32: 国有 | H32: 1 | I32: 44 | J32: 3 | K32: 90 | L32: 2021年
A33: 26 | B33: 柳城县沙埔镇长隆小学幼儿园 | C33: 村屯 | D33: 国有 | H33: 1 | I33: 68 | J33: 4 | K33: 120 | L33: 2021年
A34: 27 | B34: 柳城县太平镇木界小学幼儿园 | C34: 村屯 | D34: 国有 | H34: 1 | I34: 72 | J34: 3 | K34: 90 | L34: 2021年
A35: 28 | B35: 柳城县东泉华侨农场幼儿园 | C35: 乡镇 | D35: 国有 | H35: 1 | I35: 216 | J35: 12 | K35: 360 | L35: 2022年
A36: 29 | B36: 柳城县大埔镇勤俭幼儿园 | C36: 村屯 | D36: 国有 | H36: 1 | I36: 61 | J36: 3 | K36: 90 | L36: 2022年
A37: 30 | B37: 柳城县大埔镇三塘小学幼儿园 | C37: 村屯 | D37: 国有 | H37: 1 | I37: 80 | J37: 3 | K37: 90 | L37: 2022年
A38: 31 | B38: 柳城县东泉镇西安黄塘小学幼儿园 | C38: 村屯 | D38: 国有 | H38: 1 | I38: 40 | J38: 2 | K38: 60 | L38: 2022年
A39: 32 | B39: 柳城县东泉镇西安凉亭小学幼儿园 | C39: 村屯 | D39: 国有 | H39: 1 | I39: 86 | J39: 4 | K39: 120 | L39: 2022年
A40: 33 | B40: 柳城县马山镇大龙幼儿园 | C40: 村屯 | D40: 国有 | H40: 1 | I40: 30 | J40: 3 | K40: 90 | L40: 2022年
A41: 34 | B41: 柳城县沙埔镇古仁幼儿园 | C41: 村屯 | D41: 国有 | H41: 1 | I41: 60 | J41: 3 | K41: 90 | L41: 2022年
A42: 35 | B42: 柳城县沙埔镇上雷幼儿园 | C42: 村屯 | D42: 国有 | H42: 1 | I42: 77 | J42: 4 | K42: 120 | L42: 2022年
A43: 36 | B43: 柳城县冲脉镇米村小学幼儿园 | C43: 村屯 | D43: 国有 | H43: 1 | I43: 88 | J43: 4 | K43: 120 | L43: 2022年
A44: 37 | B44: 柳城县古砦仫佬族乡泗巷幼儿园 | C44: 村屯 | D44: 国有 | H44: 1 | I44: 58 | J44: 3 | K44: 90 | L44: 2022年
A45: 38 | B45: 柳城县太平镇板贡幼儿园 | C45: 村屯 | D45: 国有 | H45: 1 | I45: 89 | J45: 3 | K45: 90 | L45: 2022年
A46: 39 | B46: 柳城县太平镇山咀小学幼儿园 | C46: 村屯 | D46: 国有 | H46: 1 | I46: 43 | J46: 3 | K46: 90 | L46: 2022年
A47: 40 | B47: 柳城县东泉镇大樟小学幼儿园 | C47: 村屯 | D47: 国有 | H47: 1 | I47: 18 | J47: 4 | K47: 120 | L47: 2022年
A48: 41 | B48: 柳城县古砦乡独山小学幼儿园 | C48: 村屯 | D48: 国有 | H48: 1 | I48: 42 | J48: 2 | K48: 60 | L48: 2022年
A49: 42 | B49: 柳城县社冲乡仓贝小学幼儿园 | C49: 村屯 | D49: 国有 | H49: 1 | I49: 70 | J49: 3 | K49: 90 | L49: 2022年

Sheet 学位数差额分析表（ (hidden)
B1: 附件1
B2: 到2022年柳州市公办幼儿园在园人数占比50%差额分析表
B3: 序号 | C3: 城区 | D3: 规划情况（户籍人口，公安局提供） | J3: 现状 | M3: 到2020为提高公办园在园人数占比所采取的5步措施 | AB3: 到2021年为提高公办园在园人数占比所采取的5步措施 | AQ3: 到2022年为提高公办园在园人数占比所采取的5步措施 | BF3: 公办园在园幼儿占比差额分析
D4: 到2020年 | F4: 到2021年 | H4: 到2022年 | J4: 总在园人数（含公办、公建民营和民办） | K4: 公办幼儿园及小学附设幼儿班 | M4: 措施1：收回公建民营幼儿园纳入公办幼儿园后在园人数占比 | P4: 措施2：完成新建、改扩建公办幼儿园后在园幼儿人数占比 | S4: 措施3：市属国有企业投资建设的小区配套幼儿园移交教育部门后在园人数占比 | V4: 措施4：市(县)直部门、单位建设配套幼儿园移交教育部门后在园人数占比 | Y4: 措施5：民营企业建设小区配套幼儿园移交教育部门后在园人数占比 | AB4: 措施1：收回公建民营幼儿园纳入公办幼儿园后在园人数占比 | AE4: 措施2：完成新建、改扩建公办幼儿园后在园幼儿人数占比 | AH4: 措施3：市属国有企业投资建设的小区配套幼儿园移交教育部门后在园人数占比 | AK4: 措施4：市(县)直部门、单位建设配套幼儿园移交教育部门后在园人数占比 | AN4: 措施5：民营企业建设小区配套幼儿园移交教育部门后在园人数占比 | AQ4: 措施1：收回公建民营幼儿园纳入公办幼儿园后在园人数占比 | AT4: 措施2：完成新建、改扩建公办幼儿园后在园幼儿人数占比 | AW4: 措施3：市属国有企业投资建设的小区配套幼儿园移交教育部门后在园人数占比 | AZ4: 措施4：市(县)直部门、单位建设配套幼儿园移交教育部门后在园人数占比 | BC4: 措施5：民营企业建设小区配套幼儿园移交教育部门后在园人数占比
D5: 在园人数 | E5: 完成50%公办园在园人数 | F5: 在园人数 | G5: 完成50%公办园在园人数 | H5: 在园人数 | I5: 完成50%公办园在园人数 | K5: 在园人数 | L5: 在园人数占比（%） | M5: 所数 | N5: 增加公办在园人数 | P5: 所数 | Q5: 增加公办在园人数 | S5: 所数 | T5: 增加公办在园人数 | V5: 所数 | W5: 增加公办在园人数 | Y5: 所数 | Z5: 增加公办在园人数 | AB5: 所数 | AC5: 增加公办在园人数 | AE5: 所数 | AF5: 增加公办在园人数 | AH5: 所数 | AI5: 增加公办在园人数 | AK5: 所数 | AL5: 增加公办在园人数 | AN5: 所数 | AO5: 增加公办在园人数 | AQ5: 所数 | AR5: 增加公办在园人数 | AT5: 所数 | AU5: 增加公办在园人数 | AW5: 所数 | AX5: 增加公办在园人数 | AZ5: 所数 | BA5: 增加公办在园人数 | BC5: 所数 | BD5: 增加公办在园人数 | BF5: 距离50%的目标差额（%） | BG5: 为弥补差额需增加学位数（个） | BH5: 为弥补差额需增加班级数（个）
B6: 1 | C6: 2 | D6: 3 | E6: 4 | F6: 5 | G6: 6 | H6: 7 | I6: 8 | J6: 9 | K6: 10 | L6: 11 | M6: 12 | N6: 13 | O6: 14 | P6: 15 | Q6: 16 | R6: 17 | S6: 18 | T6: 19 | U6: 20 | V6: 21 | W6: 22 | X6: 23 | Y6: 24 | Z6: 25 | AA6: 26 | AB6: 27 | AC6: 28 | AD6: 29 | AE6: 30 | AF6: 31 | AG6: 32 | AH6: 33 | AI6: 34 | AJ6: 35 | AK6: 36 | AL6: 37 | AM6: 38 | AN6: 39 | AO6: 40 | AP6: 41 | AQ6: 42 | AR6: 43 | AS6: 44 | AT6: 45 | AU6: 46 | AV6: 47 | AW6: 48 | AX6: 49 | AY6: 50 | AZ6: 51 | BA6: 52 | BB6: 53 | BC6: 54 | BD6: 55 | BE6: 56 | BF6: 57 | BG6: 58 | BH6: 59
C7: 柳州市合计 | D7: =SUM(D8,D16) -> 157764 | E7: =ROUND(D7/2,0) -> 78882 | F7: 153640 | G7: =ROUND(F7/2,0) -> 76820 | H7: 153954 | I7: =ROUND(H7/2,0) -> 76977 | J7: 144388 | K7: 31422 | L7: =K7/J7 -> 21.76% | M7: =SUM(M8,M16) -> 130 | N7: =SUM(N8,N16) -> 15223 | O7: =(K7+N7)/D7 -> 29.57% | P7: =SUM(P8,P16) -> 38 | Q7: =SUM(Q8,Q16) -> 11420 | R7: =(K7+N7+Q7)/D7 -> 36.80% | S7: =SUM(S8,S16) -> 16 | T7: =SUM(T8,T16) -> 3900 | U7: =(K7+N7+Q7+T7)/D7 -> 39.28% | V7: 1 | W7: 300 | X7: =(K7+N7+Q7+T7+W7)/D7 -> 39.47% | Y7: 4 | Z7: 720 | AA7: =(K7+N7+Q7+T7+W7+Z7)/D7 -> 39.92% | AB7: =SUM(AB8,AB16) -> 27 | AC7: =SUM(AC8,AC16) -> 3480 | AD7: =(K7+N7+Q7+T7+W7+Z7+AC7)/F7 -> 43.26% | AE7: =SUM(AE8,AE16) -> 42 | AF7: =SUM(AF8,AF16) -> 7740 | AG7: =(K7+N7+Q7+T7+W7+Z7+AC7+AF7)/F7 -> 48.30% | AH7: 3 | AI7: 510 | AJ7: =(K7+N7+Q7+T7+W7+Z7+AC7+AF7+AI7)/F7 -> 48.63% | AK7: 0 | AL7: 0 | AM7: =(K7+N7+Q7+T7+W7+Z7+AC7+AF7+AI7+AL7)/F7 -> 48.63% | AN7: =SUM(AN8,AN16) -> 0 | AO7: =SUM(AO8,AO16) -> 0 | AP7: =(K7+N7+Q7+T7+W7+Z7+AC7+AF7+AI7+AL7+AO7)/F7 -> 48.63% | AQ7: =SUM(AQ8,AQ16) -> 32 | AR7: =SUM(AR8,AR16) -> 3612 | AS7: =(K7+N7+Q7+T7+W7+AC7+AL7+Z7+AF7+AI7+AO7+AR7)/H7 -> 50.88% | AT7: =SUM(AT8,AT16) -> 8 | AU7: =SUM(AU8,AU16) -> 3870 | AV7: =(K7+N7+Q7+T7+W7+AC7+AL7+Z7+AF7+AI7+AO7+AR7+AU7)/H7 -> 53.39% | AW7: 26 | AX7: 6712 | AY7: =(K7+N7+Q7+T7+W7+AC7+AL7+Z7+AF7+AI7+AO7+AR7+AU7+AX7)/H7 -> 57.75% | AZ7: 16 | BA7: 3303 | BB7: =(K7+N7+Q7+T7+W7+AC7+AL7+Z7+AF7+AI7+AO7+AR7+AU7+AX7+BA7)/H7 -> 59.90% | BC7: =SUM(BC8,BC16) -> 0 | BD7: =SUM(BD8,BD16) -> 0 | BE7: =(K7+N7+Q7+T7+W7+AC7+AL7+Z7+AF7+AI7+AO7+AR7+AU7+AX7+BA7+BD7)/H7 -> 59.90% | BF7: =50%-BE7 -> -9.90%
B8: 一 | C8: 市区小计 | D8: =SUM(D9:D15) -> 76816 | E8: =ROUND(D8/2,0) -> 38408 | F8: 76720 | G8: =ROUND(F8/2,0) -> 38360 | H8: 76933 | I8: =ROUND(H8/2,0) -> 38467 | J8: 83625 | K8: 16386 | L8: 19.59% | M8: =SUM(M9:M15) -> 52 | N8: =SUM(N9:N15) -> 7073 | O8: =(K8+N8)/D8 -> 30.54% | P8: =SUM(P9:P15) -> 11 | Q8: =SUM(Q9:Q15) -> 5820 | R8: =(K8+N8+Q8)/D8 -> 38.12% | S8: =SUM(S9:S15) -> 11 | T8: =SUM(T9:T15) -> 2340 | U8: =(K8+N8+Q8+T8)/D8 -> 41.16% | V8: 1 | W8: 300 | X8: =(K8+N8+Q8+T8+W8)/D8 -> 41.55% | Y8: 4 | Z8: 720 | AA8: =(K8+N8+Q8+T8+W8+Z8)/D8 -> 42.49% | AB8: =SUM(AB9:AB15) -> 2 | AC8: =SUM(AC9:AC15) -> 810 | AD8: =(K8+N8+Q8+T8+W8+Z8+AC8)/F8 -> 43.60% | AE8: =SUM(AE9:AE15) -> 8 | AF8: =SUM(AF9:AF15) -> 3690 | AG8: =(K8+N8+Q8+T8+W8+Z8+AC8+AF8)/F8 -> 48.41% | AH8: 3 | AI8: 510 | AJ8: =(K8+N8+Q8+T8+W8+Z8+AC8+AF8+AI8)/F8 -> 49.07% | AK8: 0 | AL8: 0 | AM8: =(K8+N8+Q8+T8+W8+Z8+AC8+AF8+AI8+AL8)/F8 -> 49.07% | AN8: =SUM(AN9:AN15) -> 0 | AO8: =SUM(AO9:AO15) -> 0 | AP8: =(K8+N8+Q8+T8+W8+Z8+AC8+AF8+AI8+AL8+AO8)/F8 -> 49.07% | AQ8: =SUM(AQ9:AQ15) -> 1 | AR8: =SUM(AR9:AR15) -> 402 | AS8: =(K8+N8+Q8+T8+W8+AC8+AL8+Z8+AF8+AI8+AO8+AR8)/H8 -> 49.46% | AT8: =SUM(AT9:AT15) -> 2 | AU8: =SUM(AU9:AU15) -> 990 | AV8: =(K8+N8+Q8+T8+W8+AC8+AL8+Z8+AF8+AI8+AO8+AR8+AU8)/H8 -> 50.75% | AW8: 24 | AX8: 6420 | AY8: =(K8+N8+Q8+T8+W8+AC8+AL8+Z8+AF8+AI8+AO8+AR8+AU8+AX8)/H8 -> 59.09% | AZ8: 10 | BA8: 2430 | BB8: =(K8+N8+Q8+T8+W8+AC8+AL8+Z8+AF8+AI8+AO8+AR8+AU8+AX8+BA8)/H8 -> 62.25% | BC8: =SUM(BC9:BC15) -> 0 | BD8: =SUM(BD9:BD15) -> 0 | BE8: =(K8+N8+Q8+T8+W8+AC8+AL8+Z8+AF8+AI8+AO8+AR8+AU8+AX8+BA8+BD8)/H8 -> 62.25% | BF8: =50%-BE8 -> -12.25%
B9: 1 | C9: 城中区 | D9: 8408 | E9: =ROUND(D9/2,0) -> 4204 | F9: 8467 | G9: =ROUND(F9/2,0) -> 4234 | H9: 8575 | I9: =ROUND(H9/2,0) -> 4288 | J9: 6839 | K9: 2765 | L9: 40.43% | O9: 32.89% | P9: 2 | Q9: 1710 | R9: 53.22% | S9: 2 | T9: 390 | U9: 57.86% | X9: =(K9+N9+Q9+T9+W9)/D9 -> 57.86% | AA9: =(K9+N9+Q9+T9+W9+Z9)/D9 -> 57.86% | AD9: 57.46% | AE9: 0 | AF9: 0 | AG9: 57.46% | AH9: 1 | AI9: 120 | AJ9: 58.88% | AM9: 58.88% | AP9: 58.88% | AS9: =(K9+N9+Q9+T9+W9+AC9+AL9+Z9+AF9+AI9+AO9+AR9)/H9 -> 58.13% | AT9: 0 | AU9: 0 | AV9: 58.13% | AW9: 4 | AX9: 1110 | AY9: 71.08% | AZ9: 2 | BA9: 480 | BB9: 76.68% | BE9: 76.68% | BF9: -26.68% | BG9: —— | BH9: ——
B10: 2 | C10: 柳江区 | D10: 20984 | E10: =ROUND(D10/2,0) -> 10492 | F10: 20706 | G10: =ROUND(F10/2,0) -> 10353 | H10: 20681 | I10: =ROUND(H10/2,0) -> 10341 | J10: 18647 | K10: 5633 | L10: 30.21% | M10: 44 | N10: 4950 | O10: 50.43% | P10: 2 | Q10: 450 | R10: 52.58% | U10: 52.58% | X10: =(K10+N10+Q10+T10+W10)/D10 -> 52.58% | Y10: 2 | Z10: 450 | AA10: 54.72% | AD10: 55.46% | AE10: 3 | AF10: 270 | AG10: 56.76% | AJ10: 56.76% | AM10: 56.76% | AP10: 56.76% | AS10: 56.83% | AT10: 0 | AU10: 0 | AV10: 56.83% | AW10: 2 | AX10: 600 | AY10: 59.73% | BB10: =(K10+N10+Q10+T10+W10+AC10+AL10+Z10+AF10+AI10+AO10+AR10+AU10+AX10+BA13)/H10 -> 62.05% | BE10: =(K10+N10+Q10+T10+W10+AC10+AL10+Z10+AF10+AI10+AO10+AR10+AU10+AX10+BA13+BD10)/H10 -> 62.05% | BF10: -12.05%
B11: 3 | C11: 柳南区 | D11: 16329 | E11: 8165 | F11: 16374 | G11: 8187 | H11: 16383 | I11: 8192 | J11: 20895 | K11: 4613 | L11: 22.08% | M11: 1 | N11: 300 | O11: 30.09% | P11: 1 | Q11: 270 | R11: 31.74% | U11: 31.74% | X11: 31.74% | AA11: 31.74% | AB11: 1 | AC11: 180 | AD11: 32.75% | AE11: 1 | AF11: 1080 | AG11: 39.35% | AJ11: 39.35% | AM11: 39.35% | AP11: 39.35% | AS11: 39.33% | AT11: 0 | AU11: 0 | AV11: 39.33% | AW11: 5 | AX11: 1080 | AY11: 45.92% | AZ11: 4 | BA11: 960 | BB11: 51.78% | BE11: 51.78% | BF11: -1.78% | BG11: —— | BH11: ——
B12: 4 | C12: 北部生态新区 | D12: 2156 | E12: 1078 | F12: 2179 | G12: 1090 | H12: 2062 | I12: 1031 | J12: 5208 | K12: 760 | L12: 14.59% | O12: 35.25% | P12: 1 | Q12: 630 | R12: 64.47% | U12: 64.47% | X12: 64.47% | Y12: 2 | Z12: 270 | AA12: 76.99% | AD12: 76.18% | AE12: 2 | AF12: 1620 | AG12: 150.53% | AJ12: 150.53% | AM12: 150.53% | AP12: 150.53% | AS12: 159.07% | AT12: 0 | AU12: 0 | AV12: 159.07% | AW12: 1 | AX12: 180 | AY12: 167.80% | AZ12: 1 | BA12: 270 | BB12: 180.89% | BE12: 180.89% | BF12: -130.89% | BG12: —— | BH12: ——
B13: 5 | C13: 鱼峰区 | D13: 9121 | E13: 4561 | F13: 9067 | G13: 4534 | H13: 9205 | I13: 4603 | J13: 12638 | K13: 1560 | L13: 12.34% | M13: 5 | N13: 810 | O13: 25.98% | P13: 2 | Q13: 780 | R13: 34.54% | S13: 3 | T13: 630 | U13: 41.44% | X13: 41.44% | AA13: 41.44% | AB13: 1 | AC13: 630 | AD13: 48.64% | AE13: 1 | AF13: 180 | AG13: 50.62% | AH13: 1 | AI13: 270 | AJ13: 53.60% | AM13: 53.60% | AP13: 53.60% | AS13: 52.80% | AT13: 1 | AU13: 540 | AV13: 58.66% | AW13: 5 | AX13: 1620 | AY13: 76.26% | AZ13: 2 | BA13: 480 | BB13: 81.48% | BE13: 81.48% | BF13: -31.48% | BG13: —— | BH13: ——
B14: 6 | C14: 柳北区 | D14: 12849 | E14: 6425 | F14: 13019 | G14: 6510 | H14: 13238 | I14: 6619 | J14: 15260 | K14: 910 | L14: 5.96% | M14: 1 | N14: 473 | O14: 10.76% | P14: 2 | Q14: 1080 | R14: 19.17% | S14: 4 | T14: 960 | U14: 26.64% | V14: 1 | W14: 300 | X14: 28.98% | AA14: 28.98% | AD14: 28.60% | AE14: 0 | AF14: 0 | AG14: 28.60% | AH14: 1 | AI14: 120 | AJ14: 29.52% | AM14: 29.52% | AP14: 29.52% | AQ14: 1 | AR14: 402 | AS14: 32.07% | AT14: 0 | AU14: 0 | AV14: 32.07% | AW14: 3 | AX14: 690 | AY14: 37.28% | AZ14: 1 | BA14: 240 | BB14: 39.09% | BE14: 39.09% | BF14: 10.91% | BG14: =ROUND(H14*BF14,0) -> 1444 | BH14: =BG14/30 -> 48
B15: 7 | C15: 柳东新区 | D15: 6969 | E15: 3485 | F15: 6908 | G15: 3454 | H15: 6789 | I15: 3395 | J15: 4138 | K15: 145 | L15: 3.50% | M15: 1 | N15: 540 | O15: 9.83% | P15: 1 | Q15: 900 | R15: 22.74% | S15: 2 | T15: 360 | U15: 27.91% | X15: 27.91% | AA15: 27.91% | AD15: 28.16% | AE15: 1 | AF15: 540 | AG15: 35.97% | AJ15: 35.97% | AM15: 35.97% | AP15: 35.97% | AS15: 36.60% | AT15: 1 | AU15: 450 | AV15: 43.23% | AW15: 4 | AX15: 1140 | AY15: 60.02% | BB15: 60.02% | BE15: 60.02% | BF15: -10.02% | BG15: —— | BH15: ——
B16: 二 | C16: 各县小计 | D16: =SUM(D17:D21) -> 80948 | E16: 40474 | F16: 76920 | G16: 38460 | H16: 77021 | I16: 38511 | J16: 60763 | K16: 15036 | L16: 24.75% | M16: =SUM(M17:M21) -> 78 | N16: =SUM(N17:N21) -> 8150 | O16: 28.64% | P16: =SUM(P17:P21) -> 27 | Q16: =SUM(Q17:Q21) -> 5600 | R16: 35.56% | S16: =SUM(S17:S21) -> 5 | T16: =SUM(T17:T21) -> 1560 | U16: 37.49% | V16: =SUM(V17:V21) -> 0 | W16: =SUM(W17:W21) -> 0 | X16: 37.49% | Y16: =SUM(Y17:Y21) -> 0 | Z16: =SUM(Z17:Z21) -> 0 | AA16: 37.49% | AB16: =SUM(AB17:AB21) -> 25 | AC16: =SUM(AC17:AC21) -> 2670 | AD16: 42.92% | AE16: =SUM(AE17:AE21) -> 34 | AF16: =SUM(AF17:AF21) -> 4050 | AG16: 48.19% | AH16: =SUM(AH17:AH21) -> 0 | AI16: =SUM(AI17:AI21) -> 0 | AJ16: 48.19% | AK16: =SUM(AK17:AK21) -> 0 | AL16: =SUM(AL17:AL21) -> 0 | AM16: 48.19% | AN16: =SUM(AN17:AN21) -> 0 | AO16: =SUM(AO17:AO21) -> 0 | AP16: 48.19% | AQ16: =SUM(AQ17:AQ21) -> 31 | AR16: =SUM(AR17:AR21) -> 3210 | AS16: 52.29% | AT16: =SUM(AT17:AT21) -> 6 | AU16: =SUM(AU17:AU21) -> 2880 | AV16: 56.03% | AW16: =SUM(AW17:AW21) -> 2 | AX16: =SUM(AX17:AX21) -> 292 | AY16: 56.41% | AZ16: =SUM(AZ17:AZ21) -> 6 | BA16: =SUM(BA17:BA21) -> 873 | BB16: 57.54% | BC16: =SUM(BC17:BC21) -> 0 | BD16: =SUM(BD17:BD21) -> 0 | BE16: 57.54% | BF16: -7.54%
B17: 1 | C17: 三江县 | D17: 16552 | E17: 8276 | F17: 15246 | G17: 7623 | H17: 15202 | I17: 7601 | J17: 9747 | K17: 3562 | L17: 36.54% | M17: 27 | N17: 2180 | O17: 34.69% | P17: 13 | Q17: 1740 | R17: 45.20% | S17: 4 | T17: 720 | U17: 49.55% | X17: 49.55% | AA17: 49.55% | AD17: 53.80% | AE17: 0 | AF17: 0 | AG17: 53.80% | AJ17: 53.80% | AM17: 53.80% | AP17: 53.80% | AS17: 53.95% | AT17: 2 | AU17: 1080 | AV17: 61.06% | AY17: 61.06% | BB17: 61.06% | BE17: 61.06% | BF17: -11.06%
B18: 2 | C18: 鹿寨县 | D18: 16318 | E18: 8159 | F18: 15659 | G18: 7830 | H18: 15724 | I18: 7862 | J18: 13572 | K18: 4075 | L18: 30.03% | M18: 1 | N18: 270 | O18: 26.63% | P18: 3 | Q18: 720 | R18: 31.04% | U18: 31.04% | X18: 31.04% | AA18: 31.04% | AD18: 32.35% | AE18: 1 | AF18: 360 | AG18: 34.64% | AJ18: 34.64% | AM18: 34.64% | AP18: 34.64% | AQ18: 16 | AR18: 1530 | AS18: 44.23% | AT18: 4 | AU18: 1800 | AV18: 55.68% | AW18: 1 | AX18: 182 | AY18: 56.84% | BB18: 56.84% | BE18: 56.84% | BF18: -6.84%
B19: 3 | C19: 柳城县 | D19: 15858 | E19: 7929 | F19: 15578 | G19: 7789 | H19: 15795 | I19: 7898 | J19: 12076 | K19: 3344 | L19: 27.69% | M19: 2 | N19: 330 | O19: 23.17% | P19: 7 | Q19: 1730 | R19: 34.08% | U19: 34.08% | X19: 34.08% | AA19: 34.08% | AB19: 25 | AC19: 2670 | AD19: 51.83% | AE19: 32 | AF19: 3330 | AG19: 73.21% | AJ19: 73.21% | AM19: 73.21% | AP19: 73.21% | AQ19: 15 | AR19: 1680 | AS19: 82.84% | AT19: 0 | AU19: 0 | AV19: 82.84% | AY19: 82.84% | BB19: 82.84% | BE19: 82.84% | BF19: -32.84%
B20: 4 | C20: 融安县 | D20: 11587 | E20: 5794 | F20: 11325 | G20: 5663 | H20: 11266 | I20: 5633 | J20: 9291 | K20: 2511 | L20: 27.03% | M20: 35 | N20: 2790 | O20: 45.75% | P20: 3 | Q20: 1260 | R20: 56.62% | S20: 1 | T20: 840 | U20: 63.87% | X20: 63.87% | AA20: 63.87% | AD20: 65.35% | AE20: 0 | AF20: 0 | AG20: 65.35% | AJ20: 65.35% | AM20: 65.35% | AP20: 65.35% | AS20: 65.69% | AT20: 0 | AU20: 0 | AV20: 65.69% | AY20: 65.69% | BB20: 65.69% | BE20: 65.69% | BF20: -15.69%
B21: 5 | C21: 融水县 | D21: 20633 | E21: 10317 | F21: 19112 | G21: 9556 | H21: 19034 | I21: 9517 | J21: 16077 | K21: 1544 | L21: 9.60% | M21: 13 | N21: 2580 | O21: 19.99% | P21: 1 | Q21: 150 | R21: 20.71% | U21: 20.71% | X21: 20.71% | AA21: 20.71% | AD21: 22.36% | AE21: 1 | AF21: 360 | AG21: 24.25% | AJ21: 24.25% | AM21: 24.25% | AP21: 24.25% | AS21: 24.35% | AT21: 0 | AU21: 0 | AV21: 24.35% | AW21: 1 | AX21: 110 | AY21: 24.92% | AZ21: 6 | BA21: 873 | BB21: 29.51% | BE21: 29.51% | BF21: 20.49% | BG21: =ROUND(H21*BF21,0) -> 3900 | BH21: =BG21/30 -> 130
C23: 说明： | D23: 根据规划部门通过卫健部门的数据测算，我市市区2020年规划人口244万人，按照近期万人口指标450生/万人计算，则学前三年适龄儿童为9.76万人，超过公安部门提供的常住人口统计数据7.53万人约2.23万人，而且规划数据中鱼峰区的人口数无法将柳东新区、阳和工业新区从其中分出来，柳北区也无法将北部生态新区也存在同样的情况。因此，本次分析，我局采用由公安部门提供的我市常住人口统计数据作为测算依据。
